fUST/lending_fUST_20240925
["ID","MTS","AMOUNT","RATE_DAILY","PERIOD"]
[339070726,1727199951797,-500.0,0.00017435,2]
[339070727,1727199951819,-500.0,0.00017435,2]
[339070728,1727199951841,-500.0,0.00017435,2]
[339070729,1727199951870,-500.0,0.00017435,2]
[339070730,1727199951892,-500.0,0.00017435,2]
[339070731,1727199951913,-500.0,0.00017435,2]
[339070732,1727199951935,-568.67741102,0.00017435,2]
[339070733,1727199951956,-500.0,0.00017435,2]
[339070734,1727199951977,-500.0,0.00017435,2]
[339070735,1727199951999,-483.89299039,0.00017435,2]
[339070736,1727199952020,-500.0,0.00017435,2]
[339070737,1727199952042,-500.0,0.00017435,2]
[339070738,1727199952063,-500.0,0.00017435,2]
[339070739,1727199952087,-500.0,0.00017435,2]
[339070740,1727199952113,-500.0,0.00017435,2]
[339070741,1727199952140,-500.0,0.00017435,2]
[339070742,1727199952163,-500.0,0.00017435,2]
[339070743,1727199952184,-500.0,0.00017435,2]
[339070744,1727199952205,-500.0,0.00017435,2]
[339070745,1727199952227,-500.0,0.00017435,2]
[339070746,1727199952248,-500.0,0.00017435,2]
[339070747,1727199952270,-500.0,0.00017435,2]
[339070748,1727199952292,-500.0,0.00017435,2]
[339070749,1727199952314,-500.0,0.00017435,2]
[339070750,1727199952339,-1335.95152601,0.00017435,2]
[339070751,1727199952365,-1335.95152601,0.00017435,2]
[339070752,1727199952389,-1335.95152601,0.00017435,2]
[339070753,1727199952412,-1335.95152601,0.00017435,2]
[339070754,1727199952436,-1335.95152601,0.00017435,2]
[339070755,1727199952460,-1335.95152601,0.00017435,2]
[339070756,1727199952484,-1335.95152601,0.00017435,2]
[339070757,1727199952508,-1335.95152601,0.00017435,2]
[339070758,1727199952532,-1335.95152601,0.00017435,2]
[339070759,1727199952555,-1335.95152601,0.00017435,2]
[339070760,1727199952581,-1335.95152601,0.00017435,2]
[339070761,1727199952606,-1335.95152601,0.00017435,2]
[339070762,1727199952633,-1335.95152601,0.00017435,2]
[339070763,1727199952656,-1335.95152601,0.00017435,2]
[339070764,1727199952682,-1335.95152601,0.00017435,2]
[339070765,1727199952706,-1335.95152601,0.00017435,2]
[339070766,1727199952732,-1335.95152601,0.00017435,2]
[339070767,1727199952758,-1335.95152601,0.00017435,2]
[339070768,1727199952783,-1335.95152601,0.00017435,2]
[339070769,1727199952807,-1335.95152601,0.00017435,2]
[339070770,1727199952834,-1335.95152601,0.00017435,2]
[339070771,1727199952861,-1335.95152601,0.00017435,2]
[339070772,1727199952885,-1335.95152601,0.00017435,2]
[339070773,1727199952910,-1335.95152601,0.00017435,2]
[339070774,1727199952934,-1335.95152601,0.00017435,2]
[339070775,1727199952958,-1335.95152601,0.00017435,2]
[339070776,1727199952982,-1335.95152601,0.00017435,2]
[339070777,1727199953008,-1335.95152601,0.00017435,2]
[339070778,1727199953032,-1335.95152601,0.00017435,2]
[339070779,1727199953056,-1335.95152601,0.00017435,2]
[339070780,1727199953082,-1335.95152601,0.00017435,2]
[339070781,1727199953108,-1335.95152601,0.00017435,2]
[339070782,1727199953133,-1335.95152601,0.00017435,2]
[339070783,1727199953159,-1335.95152601,0.00017435,2]
[339070784,1727199953184,-684.55505556,0.00017435,2]
[339070785,1727199966054,212.12,0.00010959,2]
[339070787,1727199976752,176.76,0.00010959,2]
[339070788,1727199987518,883.85,0.00010959,2]
[339070789,1727200010508,-158.13288428,0.000173,2]
[339070790,1727200010531,-300.0,0.00017346,2]
[339070791,1727200010761,-300.0,0.00017346,2]
[339070792,1727200010793,-14305.5455545,0.00017347,2]
[339070793,1727200010816,-500.0,0.00017434,2]
[339070794,1727200010840,-500.0,0.00017434,2]
[339070795,1727200010862,-553.76588782,0.00017434,2]
[339070796,1727200010886,-500.0,0.00017434,2]
[339070797,1727200010911,-500.0,0.00017434,2]
[339070798,1727200010934,-500.0,0.00017434,2]
[339070799,1727200010959,-500.0,0.00017434,2]
[339070800,1727200010983,-500.0,0.00017434,2]
[339070801,1727200011008,-500.0,0.00017434,2]
[339070802,1727200011033,-500.0,0.00017434,2]
[339070803,1727200011056,-500.0,0.00017434,2]
[339070804,1727200011081,-500.0,0.00017434,2]
[339070805,1727200011107,-500.0,0.00017434,2]
[339070806,1727200011130,-500.0,0.00017434,2]
[339070807,1727200011157,-500.0,0.00017434,2]
[339070808,1727200011181,-500.0,0.00017434,2]
[339070809,1727200011206,-500.0,0.00017434,2]
[339070810,1727200011231,-500.0,0.00017434,2]
[339070811,1727200011254,-285.40860122,0.00017434,2]
[339070812,1727200011280,-500.0,0.00017434,2]
[339070813,1727200011304,-500.0,0.00017434,2]
[339070814,1727200011329,-500.0,0.00017434,2]
[339070815,1727200011355,-500.0,0.00017434,2]
[339070816,1727200011380,-500.0,0.00017434,2]
[339070817,1727200011408,-500.0,0.00017434,2]
[339070818,1727200011432,-500.0,0.00017434,2]
[339070819,1727200011456,-500.0,0.00017434,2]
[339070820,1727200011481,-500.0,0.00017434,2]
[339070821,1727200011505,-358.92476486,0.00017434,2]
[339070822,1727200011529,-500.0,0.00017434,2]
[339070823,1727200011553,-500.0,0.00017434,2]
[339070824,1727200011577,-500.0,0.00017434,2]
[339070825,1727200011601,-500.0,0.00017434,2]
[339070826,1727200011625,-500.0,0.00017434,2]
[339070827,1727200011649,-500.0,0.00017434,2]
[339070828,1727200011681,-500.0,0.00017434,2]
[339070829,1727200011705,-500.0,0.00017434,2]
[339070830,1727200011730,-500.0,0.00017434,2]
[339070831,1727200011755,-500.0,0.00017434,2]
[339070832,1727200011780,-500.0,0.00017434,2]
[339070833,1727200011804,-500.0,0.00017434,2]
[339070834,1727200011829,-500.0,0.00017434,2]
[339070835,1727200011854,-500.0,0.00017434,2]
[339070836,1727200011878,-500.0,0.00017434,2]
[339070837,1727200011902,-500.0,0.00017434,2]
[339070838,1727200011928,-500.0,0.00017434,2]
[339070839,1727200011953,-500.0,0.00017434,2]
[339070840,1727200011977,-500.0,0.00017434,2]
[339070841,1727200012000,-296.73696251,0.00017434,2]
[339070842,1727200012025,-763.94596916,0.00017434,2]
[339070843,1727200012050,-763.94596916,0.00017434,2]
[339070844,1727200012074,-763.94596916,0.00017434,2]
[339070845,1727200012099,-763.94596916,0.00017434,2]
[339070846,1727200012127,-763.94596916,0.00017434,2]
[339070847,1727200012149,-500.0,0.00017435,2]
[339070848,1727200012174,-500.0,0.00017435,2]
[339070849,1727200012199,-500.0,0.00017435,2]
[339070850,1727200012221,-359.62841387,0.00017435,2]
[339070851,1727200012245,-500.0,0.00017435,2]
[339070852,1727200012269,-402.55978313,0.00017435,2]
[339070853,1727200012291,-500.0,0.00017435,2]
[339070854,1727200012314,-500.0,0.00017435,2]
[339070855,1727200012336,-183.64407413,0.00017435,2]
[339070856,1727200012358,-500.0,0.00017435,2]
[339070857,1727200012380,-500.0,0.00017435,2]
[339070858,1727200012404,-500.0,0.00017435,2]
[339070859,1727200012427,-500.0,0.00017435,2]
[339070860,1727200012451,-500.0,0.00017435,2]
[339070861,1727200012578,-331.05872416,0.00017435,2]
[339070862,1727200012600,-500.0,0.00017435,2]
[339070863,1727200012623,-500.0,0.00017435,2]
[339070864,1727200012646,-500.0,0.00017435,2]
[339070865,1727200012669,-500.0,0.00017435,2]
[339070866,1727200012691,-500.0,0.00017435,2]
[339070867,1727200012713,-500.0,0.00017435,2]
[339070868,1727200012736,-500.0,0.00017435,2]
[339070869,1727200012760,-500.0,0.00017435,2]
[339070870,1727200012783,-393.92941721,0.00017435,2]
[339070871,1727200012805,-208.77737004,0.00017435,2]
[339070872,1727200012827,-610.44971452,0.00017435,2]
[339070873,1727200012850,-610.44971452,0.00017435,2]
[339070874,1727200012873,-610.44971452,0.00017435,2]
[339070875,1727200012897,-610.44971452,0.00017435,2]
[339070876,1727200012923,-610.44971452,0.00017435,2]
[339070877,1727200012947,-610.44971452,0.00017435,2]
[339070878,1727200012972,-610.44971452,0.00017435,2]
[339070879,1727200012995,-610.44971452,0.00017435,2]
[339070880,1727200013018,-610.44971452,0.00017435,2]
[339070881,1727200013041,-610.44971452,0.00017435,2]
[339070882,1727200013063,-610.44971452,0.00017435,2]
[339070883,1727200013085,-610.44971452,0.00017435,2]
[339070884,1727200013109,-610.44971452,0.00017435,2]
[339070885,1727200013133,-610.44971452,0.00017435,2]
[339070886,1727200013158,-233.33635743,0.00017435,2]
[339070887,1727200013183,-4962.52535576,0.00017436,2]
[339070888,1727200072429,-3467.267118,0.00017169,2]
[339070889,1727200072454,-9216.65781177,0.00017335,2]
[339070890,1727200072476,-300.0,0.00017433,2]
[339070891,1727200072500,-300.0,0.00017433,2]
[339070892,1727200072536,-763.94596916,0.00017434,2]
[339070893,1727200072568,-763.94596916,0.00017434,2]
[339070894,1727200072595,-763.94596916,0.00017434,2]
[339070895,1727200072623,-763.94596916,0.00017434,2]
[339070896,1727200072650,-763.94596916,0.00017434,2]
[339070897,1727200072677,-763.94596916,0.00017434,2]
[339070898,1727200072704,-763.94596916,0.00017434,2]
[339070899,1727200072730,-763.94596916,0.00017434,2]
[339070900,1727200072757,-763.94596916,0.00017434,2]
[339070901,1727200072785,-763.94596916,0.00017434,2]
[339070902,1727200072811,-763.94596916,0.00017434,2]
[339070903,1727200072838,-763.94596916,0.00017434,2]
[339070904,1727200072864,-763.94596916,0.00017434,2]
[339070905,1727200072889,-763.94596916,0.00017434,2]
[339070906,1727200072914,-763.94596916,0.00017434,2]
[339070907,1727200072940,-763.94596916,0.00017434,2]
[339070908,1727200072966,-763.94596916,0.00017434,2]
[339070909,1727200072994,-763.94596916,0.00017434,2]
[339070910,1727200073021,-763.94596916,0.00017434,2]
[339070911,1727200073049,-763.94596916,0.00017434,2]
[339070912,1727200073078,-763.94596916,0.00017434,2]
[339070913,1727200073104,-763.94596916,0.00017434,2]
[339070914,1727200073134,-763.94596916,0.00017434,2]
[339070915,1727200073161,-763.94596916,0.00017434,2]
[339070916,1727200073186,-763.94596916,0.00017434,2]
[339070917,1727200073213,-763.94596916,0.00017434,2]
[339070918,1727200073237,-763.94596916,0.00017434,2]
[339070919,1727200073263,-763.94596916,0.00017434,2]
[339070920,1727200073289,-763.94596916,0.00017434,2]
[339070921,1727200073314,-500.0,0.00017434,2]
[339070922,1727200073340,-500.0,0.00017434,2]
[339070923,1727200073365,-500.0,0.00017434,2]
[339070924,1727200073390,-500.0,0.00017434,2]
[339070925,1727200073415,-215.8542887,0.00017434,2]
[339070926,1727200073576,-500.0,0.00017434,2]
[339070927,1727200073601,-500.0,0.00017434,2]
[339070928,1727200073626,-500.0,0.00017434,2]
[339070929,1727200073651,-500.0,0.00017434,2]
[339070930,1727200073675,-500.0,0.00017434,2]
[339070931,1727200073699,-500.0,0.00017434,2]
[339070932,1727200073724,-500.0,0.00017434,2]
[339070933,1727200073748,-500.0,0.00017434,2]
[339070934,1727200073773,-500.0,0.00017434,2]
[339070935,1727200073799,-500.0,0.00017434,2]
[339070936,1727200073824,-500.0,0.00017434,2]
[339070937,1727200073848,-610.44971452,0.00017435,2]
[339070938,1727200073871,-610.44971452,0.00017435,2]
[339070939,1727200073894,-500.0,0.00017435,2]
[339070940,1727200073918,-500.0,0.00017435,2]
[339070941,1727200073943,-500.0,0.00017435,2]
[339070942,1727200073969,-500.0,0.00017435,2]
[339070943,1727200073992,-500.0,0.00017435,2]
[339070944,1727200074015,-232.73659431,0.00017435,2]
[339070945,1727200074038,-19937.47464424,0.00017436,2]
[339070946,1727200074060,-113.3757466,0.00017451,2]
[339070947,1727200074082,-3467.267118,0.00017853,2]
[339070948,1727200074103,-1206.1677005,0.00018072,2]
[339070949,1727200074129,-250.0,0.00018129,2]
[339070950,1727200074152,-250.0,0.00018264,2]
[339070951,1727200074176,-250.0,0.00018313,2]
[339070952,1727200074200,-250.0,0.00018362,2]
[339070953,1727200074224,-250.0,0.00018411,2]
[339070954,1727200074247,-250.0,0.0001846,2]
[339070955,1727200074270,-250.0,0.00018509,2]
[339070956,1727200074293,-3467.267118,0.00018538,2]
[339070957,1727200074316,-250.0,0.00018559,2]
[339070958,1727200074339,-250.0,0.00018608,2]
[339070959,1727200074362,-868.35954451,0.00018618,2]
[339070960,1727200074385,-207.10454671,0.0001862,2]
[339070961,1727200074408,-250.0,0.00018657,2]
[339070962,1727200074430,-150.112233,0.000187,2]
[339070963,1727200074452,-250.0,0.00018706,2]
[339070964,1727200074475,-174.76413084,0.00018717,2]
[339070965,1727200074498,-80550.25887014,0.00018718,2]
[339070966,1727200112740,-250.0,0.0001731,2]
[339070967,1727200112764,-250.0,0.00017358,2]
[339070968,1727200112788,-250.0,0.00017405,2]
[339070969,1727200112811,-250.0,0.00017453,2]
[339070970,1727200112835,-250.0,0.000175,2]
[339070971,1727200112857,-250.0,0.00017548,2]
[339070972,1727200112881,-250.0,0.00017595,2]
[339070973,1727200112904,-250.0,0.00017643,2]
[339070974,1727200112927,-250.0,0.0001769,2]
[339070975,1727200112949,-250.0,0.00017737,2]
[339070976,1727200112972,-250.0,0.00017785,2]
[339070977,1727200112996,-250.0,0.00017832,2]
[339070978,1727200113019,-250.0,0.0001788,2]
[339070979,1727200113043,-250.0,0.00017927,2]
[339070980,1727200113066,-250.0,0.00017975,2]
[339070981,1727200113089,-250.0,0.00018022,2]
[339070982,1727200113113,-250.0,0.0001807,2]
[339070983,1727200113139,-250.0,0.00018117,2]
[339070984,1727200113162,-250.0,0.00018165,2]
[339070985,1727200113187,-250.0,0.00018212,2]
[339070986,1727200113211,-150.112233,0.000183,2]
[339070987,1727200113238,-251.73988971,0.00018707,2]
[339070988,1727200113261,-631.79184819,0.00018707,2]
[339070989,1727200113285,-500.0,0.00018707,2]
[339070990,1727200113310,-500.0,0.00018707,2]
[339070991,1727200113335,-481.74110691,0.00018707,2]
[339070992,1727200113359,-42484.61492219,0.00018708,2]
[339070993,1727200152798,-250.0,0.00017713,2]
[339070994,1727200152821,-676.813223,0.00017716,2]
[339070995,1727200152843,-300.0,0.00018706,2]
[339070996,1727200152865,-300.0,0.00018706,2]
[339070997,1727200152886,-500.0,0.00018707,2]
[339070998,1727200152909,-500.0,0.00018707,2]
[339070999,1727200152930,-500.0,0.00018707,2]
[339071000,1727200152953,-200.0,0.00018707,2]
[339071001,1727200152976,-500.0,0.00018707,2]
[339071002,1727200152999,-500.0,0.00018707,2]
[339071003,1727200153022,-500.0,0.00018707,2]
[339071004,1727200153047,-500.0,0.00018707,2]
[339071005,1727200153069,-500.0,0.00018707,2]
[339071006,1727200153090,-528.5508519,0.00018707,2]
[339071007,1727200153113,-500.0,0.00018707,2]
[339071008,1727200153136,-500.0,0.00018707,2]
[339071009,1727200153162,-500.0,0.00018707,2]
[339071010,1727200153187,-234.7652744,0.00018707,2]
[339071011,1727200153209,-500.0,0.00018707,2]
[339071012,1727200153234,-500.0,0.00018707,2]
[339071013,1727200153257,-500.0,0.00018707,2]
[339071014,1727200153280,-500.0,0.00018707,2]
[339071015,1727200153303,-500.0,0.00018707,2]
[339071016,1727200153327,-500.0,0.00018707,2]
[339071017,1727200153349,-500.0,0.00018707,2]
[339071018,1727200153372,-500.0,0.00018707,2]
[339071019,1727200153394,-500.0,0.00018707,2]
[339071020,1727200153418,-500.0,0.00018707,2]
[339071021,1727200153442,-500.0,0.00018707,2]
[339071022,1727200153466,-500.0,0.00018707,2]
[339071023,1727200153489,-500.0,0.00018707,2]
[339071024,1727200153516,-500.0,0.00018707,2]
[339071025,1727200153539,-500.0,0.00018707,2]
[339071026,1727200153563,-492.60712711,0.00018707,2]
[339071027,1727200153586,-500.0,0.00018707,2]
[339071028,1727200153726,-500.0,0.00018707,2]
[339071029,1727200153753,-500.0,0.00018707,2]
[339071030,1727200153778,-500.0,0.00018707,2]
[339071031,1727200153801,-500.0,0.00018707,2]
[339071032,1727200153824,-500.0,0.00018707,2]
[339071033,1727200153846,-500.0,0.00018707,2]
[339071034,1727200153869,-500.0,0.00018707,2]
[339071035,1727200153891,-500.0,0.00018707,2]
[339071036,1727200153913,-550.0,0.00018707,2]
[339071037,1727200153934,-17967.26352359,0.00018708,2]
[339071038,1727200183686,-694.6876356,0.0001861,2]
[339071039,1727200183709,-694.6876356,0.00018708,2]
[339071040,1727200183733,-38610.6247288,0.00018708,2]
[339071041,1727200220538,-999.32902697,0.00018706,2]
[339071042,1727200220565,-300.0,0.00018707,2]
[339071043,1727200220588,-300.0,0.00018707,2]
[339071044,1727200220615,-7385.78723242,0.00018708,2]
[339071045,1727200220642,-1014.88374061,0.00018708,2]
[339071082,1727200231733,-299.26588096,0.0001861,2]
[339071084,1727200231744,-725.87218722,0.00018708,2]
[339071142,1727200238173,-129558.45591717,0.00018708,2]
[339071143,1727200238182,-174.76413085,0.0001871,2]
[339071144,1727200238192,-212896.580813,0.00018711,2]
[339071145,1727200238203,-262598.423691,0.00018711,2]
[339071146,1727200238212,-999.51780856,0.00018717,2]
[339071147,1727200238222,-1051.39958418,0.00018718,2]
[339071148,1727200238231,-500.0,0.00018773,2]
[339071149,1727200238242,-500.0,0.00018773,2]
[339071150,1727200238251,-500.0,0.00018773,2]
[339071151,1727200238262,-303.89639885,0.00018773,2]
[339071152,1727200238272,-500.0,0.00018773,2]
[339071153,1727200238285,-500.0,0.00018773,2]
[339071154,1727200238295,-500.0,0.00018773,2]
[339071155,1727200238305,-500.0,0.00018773,2]
[339071156,1727200238314,-500.0,0.00018773,2]
[339071157,1727200238324,-500.0,0.00018773,2]
[339071158,1727200238337,-171.51958008,0.00018773,2]
[339071159,1727200238347,-150.112233,0.000188,2]
[339071160,1727200238357,-694.6876356,0.00018805,2]
[339071161,1727200238367,-150.112233,0.000189,2]
[339071162,1727200238376,-150.112233,0.000189,2]
[339071163,1727200238385,-694.6876356,0.00018903,2]
[339071164,1727200238395,-694.6876356,0.00019,2]
[339071165,1727200238404,-1840.98681653,0.00019011,2]
[339071166,1727200238413,-500.0,0.00019067,2]
[339071167,1727200238423,-206.29869456,0.00019067,2]
[339071168,1727200238435,-151.0,0.0001909,2]
[339071169,1727200238446,-151.0,0.0001909,2]
[339071170,1727200238456,-106448.290407,0.00019091,3]
[339071171,1727200238467,-131299.211845,0.00019091,3]
[339071172,1727200238477,-150.112233,0.000191,2]
[339071173,1727200238486,-501.45853946,0.00019173,2]
[339071174,1727200238496,-500.0,0.00019173,2]
[339071175,1727200238506,-500.42397548,0.00019173,2]
[339071176,1727200238516,-157.919739,0.00019178,2]
[339071177,1727200238695,-166.101706,0.00019178,2]
[339071178,1727200238707,-150.112233,0.000192,2]
[339071179,1727200238717,-150.112233,0.000192,2]
[339071180,1727200238727,-160.0,0.0001921,2]
[339071181,1727200238737,-209.261881,0.00019212,2]
[339071182,1727200238746,-209.261881,0.00019212,2]
[339071183,1727200238755,-1433.804661,0.00019212,2]
[339071184,1727200238765,-1433.804661,0.00019212,2]
[339071185,1727200238774,-350.831491,0.00019212,2]
[339071186,1727200238784,-350.831491,0.00019212,2]
[339071187,1727200238793,-397.538521,0.00019212,2]
[339071188,1727200238803,-397.538521,0.00019212,2]
[339071189,1727200238813,-151.0,0.00019212,2]
[339071190,1727200238823,-151.0,0.00019212,2]
[339071191,1727200238835,-331.37458169,0.00019273,2]
[339071192,1727200238844,-411.26763282,0.00019273,2]
[339071193,1727200238854,-500.0,0.00019273,2]
[339071194,1727200238863,-500.0,0.00019273,2]
[339071195,1727200238872,-500.0,0.00019273,2]
[339071196,1727200238881,-150.112233,0.000193,2]
[339071197,1727200238891,-254.37528945,0.00019321,2]
[339071198,1727200238900,-1000.0,0.00019321,2]
[339071199,1727200238909,-368.71715514,0.00019321,2]
[339071200,1727200238919,-1000.0,0.00019321,2]
[339071201,1727200238929,-1000.0,0.00019321,2]
[339071202,1727200238938,-1000.0,0.00019321,2]
[339071203,1727200238948,-500.56735602,0.00019321,2]
[339071204,1727200238957,-1000.0,0.00019321,2]
[339071205,1727200238967,-500.0,0.000194,2]
[339071206,1727200238977,-150.112233,0.000194,2]
[339071207,1727200238987,-150.112233,0.000195,2]
[339071208,1727200238997,-150.112233,0.000195,2]
[339071209,1727200239008,-150.112233,0.000196,2]
[339071210,1727200239018,-1000.0,0.00019615,2]
[339071211,1727200239028,-150.112233,0.000197,2]
[339071212,1727200239038,-1034.58287951,0.00019721,2]
[339071213,1727200239048,-500.0,0.00019727,2]
[339071214,1727200239057,-500.0,0.00019727,2]
[339071215,1727200239068,-500.0,0.00019727,2]
[339071216,1727200239077,-500.0,0.00019727,2]
[339071217,1727200239087,-150.112233,0.000198,2]
[339071218,1727200239097,-500.0,0.00019807,2]
[339071219,1727200239106,-827.40521494,0.00019821,2]
[339071220,1727200239117,-1004.80866085,0.00019821,2]
[339071221,1727200239126,-500.61949064,0.00019821,2]
[339071222,1727200239135,-151.0,0.00019838,2]
[339071223,1727200239145,-151.0,0.00019838,2]
[339071224,1727200239156,-151.0,0.00019838,2]
[339071225,1727200239168,-151.0,0.00019838,2]
[339071226,1727200239177,-151.0,0.00019838,2]
[339071227,1727200239187,-151.0,0.00019838,2]
[339071228,1727200239196,-151.0,0.00019838,2]
[339071229,1727200239206,-960.684071,0.00019838,2]
[339071230,1727200239215,-183.244795,0.00019838,2]
[339071231,1727200239225,-183.244795,0.00019838,2]
[339071233,1727200239235,-421.574842,0.00019838,2]
[339071234,1727200239247,-421.574842,0.00019838,2]
[339071235,1727200239257,-151.0,0.00019838,2]
[339071236,1727200239270,-249.078605,0.00019838,2]
[339071237,1727200239280,-249.078605,0.00019838,2]
[339071238,1727200239289,-750.579028,0.00019838,2]
[339071239,1727200239299,-750.579028,0.00019838,2]
[339071241,1727200239309,-222.459046,0.00019838,2]
[339071242,1727200239319,-222.459046,0.00019838,2]
[339071243,1727200239332,-151.0,0.00019838,2]
[339071244,1727200239341,-151.0,0.00019838,2]
[339071245,1727200239352,-209.261881,0.00019838,2]
[339071246,1727200239363,-209.261881,0.00019838,2]
[339071247,1727200239373,-1433.804661,0.00019838,2]
[339071248,1727200239383,-1433.804661,0.00019838,2]
[339071249,1727200239394,-173.086682,0.00019838,2]
[339071250,1727200239404,-173.086682,0.00019838,2]
[339071251,1727200239414,-350.831491,0.00019838,2]
[339071252,1727200239424,-350.831491,0.00019838,2]
[339071253,1727200239434,-397.538521,0.00019838,2]
[339071254,1727200239444,-397.538521,0.00019838,2]
[339071256,1727200239454,-151.0,0.00019838,2]
[339071257,1727200239463,-151.0,0.00019838,2]
[339071258,1727200239472,-566.381994,0.00019838,2]
[339071259,1727200239481,-566.381994,0.00019838,2]
[339071260,1727200239491,-1000.0,0.00019948,2]
[339071261,1727200239500,-2000.0,0.00019998,2]
[339071263,1727200239510,-1003.31635428,0.00019999,2]
[339071264,1727200239519,-373.83068135,0.0002,2]
[339071265,1727200239530,-140901.6024827,0.0002,2]
[339071266,1727200239539,-151.0,0.0002,2]
[339071267,1727200239548,-279.519939,0.0002,2]
[339071268,1727200239558,-1768.37823,0.0002,2]
[339071270,1727200239568,-1768.37823,0.0002,2]
[339071271,1727200239578,-151.0,0.0002,2]
[339071272,1727200239594,-652.374896,0.0002,2]
[339071273,1727200239604,-652.374896,0.0002,2]
[339071274,1727200239614,-151.0,0.0002,2]
[339071275,1727200239623,-344.477916,0.0002,2]
[339071276,1727200239634,-344.477916,0.0002,2]
[339071277,1727200239643,-2796.65177,0.0002,2]
[339071278,1727200239653,-2796.65177,0.0002,2]
[339071279,1727200239663,-153.475498,0.0002,2]
[339071280,1727200239673,-175.69148505,0.0002,2]
[339071281,1727200239683,-151.0,0.0002,2]
[339071282,1727200239693,-150.112233,0.000202,2]
[339071283,1727200239703,-298.00801653,0.00020275,2]
[339071284,1727200239713,-1000.0,0.00020275,2]
[339071285,1727200239723,-1000.0,0.00020275,2]
[339071286,1727200239733,-606.96312189,0.00020317,2]
[339071287,1727200239742,-500.0,0.00020317,2]
[339071288,1727200239752,-373.06051716,0.00020317,2]
[339071289,1727200239762,-387.83972564,0.00020317,2]
[339071290,1727200239773,-500.0,0.00020317,2]
[339071291,1727200239782,-500.0,0.00020317,2]
[339071292,1727200239792,-500.0,0.00020317,2]
[339071293,1727200239802,-500.0,0.00020317,2]
[339071294,1727200239811,-1000.0,0.00020322,2]
[339071295,1727200239822,-1500.0,0.00020322,2]
[339071296,1727200239834,-1321.7682589,0.00020322,2]
[339071297,1727200239843,-1500.0,0.00020322,2]
[339071298,1727200239854,-502.00599836,0.00020322,2]
[339071299,1727200239865,-1111.55817384,0.00020355,2]
[339071300,1727200239875,-420.0,0.00020396,2]
[339071301,1727200239884,-150.112233,0.000204,4]
[339071302,1727200239894,-420.0,0.00020577,2]
[339071303,1727200239904,-150.112233,0.000208,4]
[339071304,1727200239913,-674.0789693,0.00020865,2]
[339071305,1727200239923,-1000.0,0.00020865,2]
[339071306,1727200239934,-1005.61499426,0.00020865,2]
[339071307,1727200239943,-1000.0,0.00020865,2]
[339071308,1727200239953,-300.35288752,0.00020865,2]
[339071309,1727200239963,-500.0,0.00021,30]
[339071310,1727200239973,-500.0,0.00021,30]
[339071311,1727200239983,-512.30283337,0.00021,30]
[339071312,1727200239992,-500.0,0.00021,30]
[339071313,1727200240002,-500.0,0.00021,30]
[339071314,1727200240012,-513.87183106,0.00021,30]
[339071315,1727200240022,-500.0,0.00021,30]
[339071317,1727200240032,-500.0,0.00021,30]
[339071319,1727200240041,-500.0,0.00021,30]
[339071320,1727200240051,-500.0,0.00021,30]
[339071321,1727200240060,-500.0,0.00021,30]
[339071322,1727200240069,-500.0,0.00021,30]
[339071323,1727200240079,-500.0,0.00021,30]
[339071324,1727200240088,-500.0,0.00021,30]
[339071325,1727200240098,-500.0,0.00021,30]
[339071326,1727200240108,-766.77639227,0.00021,30]
[339071327,1727200240118,-500.0,0.00021,30]